bitfinex/quotes_SOLUSD_20250722
["timestamp","ask_amount","ask_price","bid_price","bid_amount"]
[1753158873784,10.81049501,199.13,199.09,5.02285398]
[1753158874086,10.75049501,199.12,199.1,0.7]
[1753158874380,0.06,199.13,199.1,0.7]
[1753158874984,10.81049501,199.13,199.11,0.7]
[1753158876277,10.81049501,199.13,199.11,5.72225293]
[1753158876483,16.78468397,199.11,199.03,0.7]
[1753158876781,10.75049501,199.04,198.99,37.48]
[1753158877085,10.75049501,199.06,199.0,0.7]
[1753158877267,10.75049501,199.06,199.02,26.0]
[1753158877582,10.75049501,199.07,199.03,0.7]
[1753158877783,10.75049501,199.07,199.04,36.78]
[1753158878085,10.75049501,199.05,199.01,26.0]
[1753158878389,10.75049501,199.02,198.98,36.78]
[1753158878559,10.75049501,198.99,198.98,37.45]
[1753158878764,10.75049501,198.99,198.98,36.78]
[1753158879160,10.75049501,198.99,198.98,62.78]
[1753158879365,10.75049501,198.99,198.93,41.78664757]
[1753158879669,10.75049501,198.94,198.93,36.76]
[1753158879863,27.53517898,198.94,198.88,0.67]
[1753158880063,10.75049501,198.9,198.89,36.8]
[1753158880570,10.75049501,198.93,198.89,37.47]
[1753158880886,10.75049501,198.93,198.9,0.67]
[1753158881087,10.75049501,198.91,198.9,0.67]
[1753158881988,10.75049501,198.91,198.89,36.8]
[1753158882782,10.75049501,198.91,198.89,42.49785724]
[1753158883286,10.75049501,198.91,198.9,0.67]
[1753158883585,10.75049501,198.91,198.89,36.8]
[1753158883766,5.02621842,198.96,198.89,36.8]
[1753158883767,10.75049501,198.9,198.89,41.82783275]
[1753158883970,10.75049501,198.91,198.89,42.49783275]
[1753158884165,16.78468397,198.98,198.89,41.82783275]
[1753158884362,10.75049501,198.92,198.9,0.67]
[1753158884576,21.81033679,198.98,198.89,36.8]
[1753158884577,10.75049501,198.91,198.89,36.8]
[1753158884780,10.75049501,198.9,198.88,0.03]
[1753158884993,10.75049501,198.89,198.88,0.7]
[1753158885165,16.78468397,198.97,198.88,5.05815768]
[1753158885365,10.75049501,198.91,198.88,5.05815768]
[1753158885690,10.75049501,198.9,198.88,0.03]
[1753158885992,10.75049501,198.89,198.88,0.03]
[1753158886870,10.75049501,198.89,198.88,0.7]
[1753158887082,10.75049501,198.9,198.88,0.7]
[1753158887283,16.78468397,198.99,198.89,26.67]
[1753158887483,16.78468397,198.99,198.9,37.43]
[1753158887484,10.75049501,198.93,198.9,37.43]
[1753158887786,10.75049501,198.91,198.9,36.76]
[1753158887965,16.78468397,198.96,198.9,36.76]
[1753158887966,10.75049501,198.94,198.91,0.67]
[1753158888170,10.75049501,198.94,198.92,0.67]
[1753158888381,10.75049501,198.94,198.93,0.67]
[1753158888789,16.78468397,199.05,198.94,26.0]
[1753158888992,16.78468397,199.05,198.95,37.43]
[1753158889174,10.75049501,199.02,198.98,26.0]
[1753158889498,10.75049501,199.01,198.99,37.43]
[1753158890292,0.06,199.1,199.01,5.02487312]
[1753158890467,0.06,199.1,199.01,17.58705592]
[1753158890669,10.75049501,199.07,199.02,0.67]
[1753158890865,10.75049501,199.06,199.03,36.76]
[1753158891076,0.06,199.1,199.03,36.76]
[1753158891077,10.75049501,199.04,199.03,36.76]
[1753158891768,16.78468397,199.09,199.03,37.43]
[1753158891965,0.06,199.1,199.03,37.43]
[1753158892184,0.06,199.1,199.04,5.69411575]
[1753158892569,10.75049501,199.09,199.05,0.67]
[1753158892770,10.75049501,199.09,199.06,0.67]
[1753158892991,10.81049501,199.1,199.07,37.41]
[1753158893190,10.81049501,199.1,199.08,0.67]
[1753158893386,10.81049501,199.1,199.07,36.74]
[1753158894278,10.81049501,199.1,199.07,41.76316083]
[1753158894478,0.06,199.1,199.06,36.72]
[1753158894679,16.78468397,199.06,199.02,36.72]
[1753158894983,10.75049501,199.03,199.02,36.72]
[1753158895970,16.78468397,199.02,198.93,0.67]
[1753158896170,10.75049501,198.97,198.94,41.72639359]
[1753158896383,10.75049501,198.97,198.94,42.39639359]
[1753158896583,5.02502674,199.01,198.94,42.39639359]
[1753158896584,5.02463469,199.02,198.94,42.39639359]
[1753158896782,10.75049501,198.97,198.94,42.39639359]
[1753158896996,10.75049501,199.0,198.95,0.67]
[1753158897394,10.75049501,199.0,198.96,0.67]
[1753158897579,10.75049501,199.0,198.97,36.72]
[1753158897776,10.75049501,199.0,198.97,37.39]
[1753158897974,10.75049501,199.0,198.98,0.67]
[1753158898192,10.75049501,199.0,198.99,5.02537815]
[1753158898490,10.75049501,199.01,198.99,5.69537815]
[1753158899274,5.02331555,199.08,199.0,37.37]
[1753158899587,10.75049501,199.03,199.0,37.37]
[1753158899793,0.06,199.1,199.02,26.0]
[1753158900120,10.75049501,199.08,199.03,36.68]
[1753158900290,10.75049501,199.08,199.04,5.02411575]
[1753158900608,16.78468397,199.04,199.01,0.67]
[1753158900795,16.78468397,199.01,198.92,36.72]
[1753158900976,0.31,199.03,198.95,26.0]
[1753158901177,10.75049501,199.02,198.96,36.74]
[1753158901377,10.75049501,198.98,198.96,36.74]
[1753158901577,10.75049501,198.97,198.91,5.02739932]
[1753158901809,10.75049501,198.93,198.92,36.78]
[1753158902490,10.75049501,198.95,198.92,42.47714659]
[1753158902691,10.75049501,198.95,198.93,0.67]
[1753158902885,10.75049501,198.95,198.94,0.67]
[1753158903083,10.75049501,198.95,198.92,41.80714659]
[1753158903283,10.75049501,198.94,198.92,42.47714659]
[1753158903487,10.75049501,198.95,198.94,5.02664119]
[1753158903872,10.75049501,198.96,198.94,5.69664119]
[1753158904075,10.75049501,198.96,198.95,0.67]
[1753158905004,16.84468397,199.01,198.95,0.67]
[1753158905005,10.75049501,198.98,198.95,0.67]
[1753158905383,10.75049501,198.97,198.96,0.67]
[1753158905585,10.75049501,198.98,198.96,42.4561359]
[1753158905802,10.75049501,198.98,198.96,37.43]
[1753158906105,10.75049501,198.98,198.97,0.67]
[1753158906279,0.06,199.01,198.97,0.67]
[1753158906478,10.81049501,199.01,198.96,41.7861359]
[1753158906679,10.75049501,199.0,198.96,41.7861359]
[1753158906932,10.75049501,198.99,198.96,36.76]
[1753158907219,0.06,199.01,198.96,62.76]
[1753158907378,0.06,199.01,198.97,0.67]
[1753158907575,10.81049501,199.01,198.98,0.67]
[1753158907799,0.06,199.01,198.99,36.76]
[1753158908083,0.06,199.01,198.99,37.43]
[1753158908290,0.06,199.01,199.0,0.72]
[1753158908930,0.06,199.01,198.99,36.76]
[1753158909299,0.06,199.01,199.0,0.72]
[1753158909499,0.06,199.01,199.0,5.74512562]
[1753158910107,0.06,199.01,198.97,10.75049501]
[1753158910108,10.81049501,199.01,198.97,0.72]
[1753158910429,10.75049501,199.0,198.99,36.72]
[1753158911101,0.06,199.01,198.99,36.72]
[1753158911301,0.06,199.01,198.93,5.74689388]
[1753158911302,7.27110853,199.0,198.93,5.74689388]
[1753158911501,7.27110853,198.95,198.94,36.72]
[1753158911908,12.29750887,198.95,198.89,5.74768732]
[1753158912128,7.27110853,198.91,198.9,36.72]
[1753158912327,5.08511633,199.01,198.9,37.44]
[1753158912537,7.27110853,198.95,198.9,36.72]
[1753158912719,7.27110853,198.96,198.91,0.72]
[1753158912921,7.27110853,198.95,198.92,0.72]
[1753158913225,7.27110853,198.94,198.93,37.44]
[1753158913427,7.27110853,198.95,198.93,37.44]
[1753158913626,7.27110853,198.94,198.93,36.72]
[1753158914839,7.27110853,198.97,198.93,42.46689388]
[1753158915018,7.27110853,198.98,198.94,0.72]
[1753158915222,0.06,199.01,198.94,0.72]
[1753158915431,0.06,199.01,198.95,33.27110853]
[1753158915609,0.06,199.01,198.97,5.02588329]
[1753158916023,0.06,199.01,198.99,26.0]
[1753158916220,0.06,199.01,199.0,36.68]
[1753158916634,0.06,199.01,199.0,37.4]
[1753158916910,0.06,199.01,199.0,44.67110853]
[1753158917216,0.06,199.09,199.0,44.67110853]
[1753158917217,0.06,199.09,199.03,26.0]
[1753158917415,7.27110853,199.06,199.04,36.68]
[1753158917712,7.27110853,199.08,199.04,42.42411575]
[1753158917919,0.06,199.09,199.04,42.42411575]
[1753158918139,0.06,199.09,199.04,49.69522428]
[1753158918326,0.06,199.09,199.07,26.0]
[1753158918641,0.06,199.13,199.11,26.0]
[1753158918817,0.06,199.13,199.12,37.38]
[1753158919421,0.06,199.17,199.12,48.75331986]
[1753158919771,0.06,199.17,199.16,31.02108857]
[1753158919943,0.06,199.17,199.16,74.9521971]
[1753158920154,0.06,199.17,199.16,75.6721971]
[1753158920313,1e-08,199.17,199.16,75.6721971]
[1753158921215,0.06,199.18,199.16,75.6721971]
[1753158921216,1e-08,199.18,199.16,79.20616221]
[1753158921419,1e-08,199.18,199.17,11.52507364]
[1753158921738,1e-08,199.18,199.17,5.74083647]
[1753158922936,1e-08,199.18,199.17,16.54591011]
[1753158924431,1e-08,199.18,199.17,5.74083647]
[1753158924647,1e-08,199.18,199.17,42.38083647]
[1753158924940,1e-08,199.18,199.17,53.18591011]
[1753158925149,1e-08,199.18,199.17,42.38083647]
[1753158925324,1e-08,199.18,199.17,53.18591011]
[1753158925530,1e-08,199.18,199.17,68.34083647]
[1753158925737,1e-08,199.18,199.17,67.62083647]
[1753158926221,1e-08,199.18,199.17,68.34083647]
[1753158926544,10.80507365,199.18,199.17,26.0]
[1753158926734,10.80507365,199.18,199.1,5.0226017]
[1753158926933,10.80507364,199.15,199.14,26.0]
[1753158927135,10.80507364,199.15,199.14,62.58]
[1753158927525,10.80507364,199.15,199.14,36.58]
[1753158927738,10.80507364,199.15,199.13,36.58]
[1753158928041,10.80507364,199.14,199.13,36.58]
[1753158929117,16.78468397,199.13,199.03,0.72]
[1753158929338,10.80507364,199.04,199.03,0.72]
[1753158929641,10.80507364,199.04,198.99,12.56285182]
[1753158929642,10.80507364,199.04,199.02,36.62]
[1753158929949,16.78468397,199.02,198.96,5.0261359]
[1753158930153,16.78468397,199.02,198.97,36.62]
[1753158930154,10.80507364,198.98,198.97,36.62]
[1753158930328,10.80507364,199.0,198.97,37.34]
[1753158930524,10.80507364,199.02,198.98,0.72]
[1753158930846,10.80507364,199.02,198.99,0.72]
[1753158931028,10.80507364,199.03,199.0,36.66]
[1753158931230,22.37221444,199.05,199.01,0.72]
[1753158931434,11.5671408,199.05,199.03,26.0]
[1753158931638,11.5671408,199.05,199.04,36.66]
[1753158931833,22.37221444,199.05,199.04,36.66]
[1753158932237,11.5671408,199.05,199.04,36.66]
[1753158932439,11.5671408,199.05,199.04,41.68411575]
[1753158933527,11.5671408,199.05,199.04,42.40411575]
[1753158934527,11.5671408,199.05,199.04,53.20918939]
[1753158934950,11.5671408,199.05,199.04,42.40411575]
[1753158935843,10.80507364,199.13,199.08,5.02310628]
[1753158936047,10.80507364,199.16,199.12,26.0]
[1753158936266,1e-08,199.18,199.13,37.34]
[1753158936552,10.80507365,199.18,199.13,37.34]
[1753158937150,1e-08,199.18,199.13,36.62]
[1753158937447,1e-08,199.18,199.14,11.52507364]
[1753158937648,1e-08,199.18,199.17,26.0]
[1753158937848,1e-08,199.18,199.17,62.62]
[1753158938058,1e-08,199.18,199.17,68.36083647]
[1753158938558,1e-08,199.18,199.17,79.16591011]
[1753158938735,1e-08,199.19,199.18,10.80507364]
[1753158938941,1e-08,199.19,199.18,11.52507364]
[1753158939433,1e-08,199.19,199.17,41.64083647]
[1753158939937,1e-08,199.19,199.18,31.74058439]
[1753158940144,1e-08,199.19,199.18,42.54565803]
[1753158941649,1e-08,199.19,199.18,5.74058439]
[1753158941953,1e-08,199.19,199.18,16.54565803]
[1753158942335,1e-08,199.19,199.18,53.14565803]
[1753158943847,1e-08,199.19,199.18,42.34058439]
[1753158944034,1e-08,199.19,199.17,5.02081649]
[1753158944235,1e-08,199.19,199.18,62.56]
[1753158944433,1e-08,199.19,199.11,0.72]
[1753158944434,10.80507365,199.19,199.11,0.72]
[1753158944662,10.80507364,199.16,199.12,36.58]
[1753158944852,10.80507364,199.16,199.15,26.0]
[1753158945050,10.80507365,199.19,199.15,63.32]
[1753158945269,1e-08,199.19,199.16,0.72]
[1753158945555,1e-08,199.19,199.17,36.6]
[1753158946155,1e-08,199.19,199.18,5.02058439]
[1753158946653,1e-08,199.19,199.18,5.74058439]
[1753158946858,1e-08,199.19,199.17,41.62081988]
[1753158947449,1e-08,199.19,199.18,0.72]
[1753158947653,1e-08,199.19,199.18,11.52507364]
[1753158948431,1e-08,199.19,199.18,16.54565803]
[1753158949346,1e-08,199.19,199.18,5.74058439]
[1753158949543,1e-08,199.19,199.18,36.56]
[1753158949948,10.80507365,199.19,199.18,36.56]
[1753158950170,1e-08,199.19,199.18,36.56]
[1753158950374,10.80507365,199.19,199.18,36.56]
[1753158950734,15.82540599,199.19,199.13,5.02182605]
[1753158950940,10.80507364,199.18,199.16,26.0]
[1753158951247,10.80507364,199.18,199.16,62.54]
[1753158951248,7.25782104,199.18,199.16,62.54]
[1753158952265,1e-08,199.19,199.16,62.54]
[1753158952439,1e-08,199.19,199.17,5.02083647]
[1753158952641,1e-08,199.19,199.18,36.54]
[1753158953154,10.81150323,199.19,199.18,36.54]
[1753158954056,10.81150322,199.19,199.18,36.54]
[1753158954769,0.06,199.21,199.18,41.56056457]
[1753158954965,0.06,199.21,199.18,42.28056457]
[1753158955173,10.81150322,199.2,199.18,36.54]
[1753158955350,0.06,199.21,199.18,36.54]
[1753158955660,0.06,199.21,199.2,26.0]
[1753158955963,0.06,199.21,199.2,73.35150322]
[1753158956162,0.06,199.21,199.2,63.26]
[1753158956372,0.06,199.21,199.2,74.07150322]
[1753158956575,1e-08,199.21,199.2,79.09158354]
[1753158956740,1e-08,199.23,199.21,16.78468397]
[1753158956943,1e-08,199.23,199.22,47.35150322]
[1753158957302,1e-08,199.23,199.22,48.07150322]
[1753158958559,1e-08,199.26,199.22,97.47470439]
[1753158958859,1e-08,199.3,199.29,26.0]
[1753158959155,0.06,199.38,199.3,24.84638397]
[1753158959357,0.06,199.38,199.37,10.81150322]
[1753158959544,0.06,199.38,199.36,10.81150322]
[1753158959750,0.06,199.38,199.37,62.56]
[1753158960879,1e-08,199.39,199.37,74.09150322]
[1753158961086,1e-08,199.39,199.38,11.53150322]
[1753158961384,10.81150322,199.47,199.4,26.0]
[1753158961554,10.81150322,199.44,199.4,26.0]
[1753158961755,16.78468397,199.5,199.35,17.55706044]
[1753158961756,10.81150322,199.41,199.35,26.0]
[1753158961954,10.81150322,199.36,199.35,26.0]
[1753158962171,10.81150322,199.37,199.35,26.0]
[1753158962375,10.81150322,199.4,199.36,36.6]
[1753158962584,0.43,199.47,199.37,16.54730298]
[1753158962893,0.43,199.5,199.39,10.81150322]
[1753158963060,10.81150322,199.45,199.4,36.62]
[1753158964098,10.81150322,199.41,199.31,5.01730971]
[1753158964300,10.81150322,199.36,199.35,26.0]
[1753158964461,16.78468397,199.35,199.25,0.72]
[1753158964809,10.81150322,199.27,199.23,5.01932439]
[1753158964978,10.81150322,199.26,199.25,36.64]
[1753158965392,0.43,199.31,199.25,36.64]
[1753158965685,10.81150322,199.26,199.25,36.64]
[1753158966589,10.81150322,199.27,199.25,36.64]
[1753158966960,10.81150322,199.27,199.25,41.65866365]
[1753158967166,10.81150322,199.27,199.25,36.64]
[1753158967786,10.81150322,199.28,199.25,41.65874503]
[1753158967976,10.81150322,199.31,199.26,0.72]
[1753158968366,16.78468397,199.35,199.27,5.66831685]
[1753158968575,12.53507173,199.45,199.31,26.0]
[1753158968781,16.78468397,199.39,199.32,36.62]
[1753158968980,10.81150322,199.35,199.32,36.62]
[1753158969377,10.81150322,199.36,199.32,36.62]
[1753158969575,10.81150322,199.37,199.32,37.27]
[1753158969908,10.81150322,199.37,199.33,0.65]
[1753158970074,10.81150322,199.38,199.33,0.65]
[1753158970573,10.81150322,199.38,199.34,5.01655463]
[1753158970891,10.81150322,199.38,199.35,36.66]
[1753158971191,0.06,199.4,199.35,36.66]
[1753158971393,10.81150322,199.38,199.35,36.66]
[1753158972189,0.06,199.4,199.36,0.65]
[1753158972493,0.06,199.4,199.39,5.01529665]
[1753158972676,0.06,199.4,199.39,41.67529665]
[1753158972994,0.06,199.4,199.39,42.32529665]
[1753158973190,0.06,199.4,199.39,36.66]
[1753158973499,16.78468397,199.39,199.28,0.65]
[1753158973671,10.81150322,199.32,199.29,36.64]
[1753158973874,10.81150322,199.32,199.31,26.0]
[1753158974380,10.81150322,199.33,199.29,36.64]
[1753158974569,0.06,199.4,199.32,10.81150322]
[1753158974769,10.87150322,199.4,199.36,26.0]
[1753158974992,0.06,199.4,199.37,37.29]
[1753158975584,0.06,199.4,199.37,36.64]
[1753158975780,10.81150322,199.39,199.37,36.64]
[1753158976071,10.81150322,199.38,199.37,36.64]
[1753158976881,16.78468397,199.37,199.34,0.03]
[1753158977079,27.59618719,199.35,199.34,0.03]
[1753158977273,10.81150322,199.35,199.34,0.03]
[1753158977779,10.81150322,199.37,199.34,5.69655463]
[1753158977985,10.81150322,199.39,199.38,26.0]
[1753158978600,10.87150322,199.4,199.38,62.7]
[1753158979484,10.87150322,199.4,199.38,67.7154415]
[1753158979691,10.87150322,199.4,199.38,62.7]
[1753158980300,16.78468397,199.38,199.34,0.03]
[1753158980602,16.78468397,199.32,199.24,5.01907247]
[1753158980793,10.81150322,199.27,199.25,36.68]
[1753158981193,10.81150322,199.26,199.25,36.68]
[1753158981392,11.21150322,199.26,199.23,0.03]
[1753158981694,27.59618719,199.24,199.23,0.03]
[1753158982268,27.99618719,199.24,199.23,0.03]
[1753158982698,33.01525966,199.24,199.23,0.03]
[1753158982884,10.81150322,199.24,199.23,0.03]
[1753158983083,11.21150322,199.24,199.23,0.03]
[1753158983777,16.23057569,199.24,199.23,0.03]
[1753158984377,10.81150322,199.24,199.23,0.03]
[1753158984702,15.83057569,199.24,199.23,0.03]
[1753158984888,10.81150322,199.24,199.23,0.03]
[1753158985483,10.81150322,199.25,199.23,0.03]
[1753158985787,10.81150322,199.26,199.23,0.68]
[1753158985995,10.81150322,199.24,199.23,0.03]
[1753158986498,16.78468397,199.3,199.23,0.03]
[1753158986793,10.81150322,199.26,199.24,5.01907247]
[1753158986999,10.81150322,199.27,199.24,5.66907247]
[1753158987209,10.81150322,199.27,199.25,0.65]
[1753158987372,5.01705799,199.32,199.26,36.7]
[1753158987572,16.78468397,199.26,199.23,36.73]
[1753158987778,10.81150322,199.24,199.23,36.73]
[1753158989218,10.81150322,199.24,199.23,41.74932439]
[1753158989390,10.81150322,199.24,199.23,36.73]
[1753158990691,27.59618719,199.24,199.23,0.03]
[1753158991006,43.82676288,199.24,199.23,0.03]
[1753158991182,26.0,199.2,199.15,0.03]
[1753158991379,27.59618719,199.16,199.15,0.03]
[1753158991577,16.78468397,199.15,199.06,0.2]
[1753158991814,0.34,199.15,199.06,41.92361097]
[1753158992111,10.81150322,199.08,199.06,42.57361097]
[1753158992282,10.81150322,199.07,199.06,36.9]
[1753158992480,10.81150322,199.07,199.06,41.92361097]
[1753158993085,10.81150322,199.1,199.06,55.13263839]
[1753158993290,10.81150322,199.08,199.06,0.85]
[1753158993578,10.81150322,199.07,199.06,36.94]
[1753158994587,10.81150322,199.07,199.06,41.96361097]
[1753158994840,10.81150322,199.08,199.06,42.61361097]
[1753158995010,10.81150322,199.09,199.07,0.65]
[1753158995207,10.81150322,199.08,199.06,41.96361097]
[1753158995505,10.81150322,199.07,199.06,0.2]
[1753158995717,27.93618719,199.07,199.06,0.2]
[1753158995880,27.59618719,199.07,199.06,0.2]
[1753158996208,27.93618719,199.07,199.06,0.2]
[1753158996882,32.9595458,199.07,199.06,0.2]
[1753158997611,27.59618719,199.07,199.06,0.2]
[1753158997985,16.78468397,199.07,199.06,0.2]
[1753158998287,10.81150322,199.08,199.06,5.91361097]
[1753158998491,10.81150322,199.08,199.07,0.69]
[1753158998798,10.81150322,199.08,199.06,5.22361097]
[1753158998983,10.81150322,199.08,199.07,0.69]
[1753158999183,10.81150322,199.1,199.07,0.69]
[1753158999600,78.3,199.23,199.07,0.69]
[1753158999601,10.81150322,199.14,199.1,26.0]
[1753158999887,10.81150322,199.15,199.11,63.43]
[1753159000107,10.81150322,199.15,199.12,37.43]
[1753159000283,10.81150322,199.17,199.15,26.0]
[1753159000609,10.81150322,199.18,199.16,37.43]
[1753159000809,10.81150322,199.17,199.16,36.74]
[1753159001709,6.3103,199.27,199.16,53.26259179]
[1753159002002,10.81150322,199.23,199.19,26.0]
[1753159002204,10.81150322,199.24,199.2,63.45]
[1753159002381,10.81150322,199.24,199.21,0.69]
[1753159002579,10.81150322,199.27,199.22,0.69]
[1753159002996,10.81150322,199.27,199.2,73.57150322]
[1753159002997,10.81150322,199.27,199.23,5.70932439]
[1753159003196,10.81150322,199.26,199.24,36.76]
[1753159003407,16.78468397,199.32,199.24,36.76]
[1753159003408,10.81150322,199.27,199.24,36.76]
[1753159003987,10.81150322,199.26,199.24,36.76]
[1753159004602,27.59618719,199.25,199.24,36.76]
[1753159004905,11.15150322,199.25,199.19,36.74]
[1753159005107,10.81150322,199.2,199.19,36.74]
[1753159005514,10.81150322,199.21,199.19,36.74]
[1753159005812,10.81150322,199.24,199.2,0.69]
[1753159006196,10.81150322,199.24,199.21,0.69]
[1753159006518,10.81150322,199.24,199.19,36.74]
[1753159006719,10.81150322,199.24,199.21,0.69]
[1753159006892,10.81150322,199.25,199.2,5.02008032]
[1753159007092,10.81150322,199.25,199.22,0.69]
[1753159007402,10.81150322,199.25,199.23,36.72]
[1753159008395,10.81150322,199.26,199.23,36.72]
[1753159008594,10.81150322,199.26,199.24,5.01907247]
[1753159008904,10.81150322,199.26,199.24,5.70907247]
[1753159009097,10.81150322,199.26,199.23,41.73928624]
[1753159009304,10.81150322,199.24,199.23,36.72]
[1753159009518,10.81150322,199.25,199.23,36.72]
[1753159009711,10.81150322,199.26,199.23,41.73932439]
[1753159010022,10.81150322,199.3,199.26,26.0]
[1753159010213,10.81150322,199.29,199.27,37.39]
[1753159010394,10.81150322,199.28,199.27,36.7]
[1753159011200,10.81150322,199.28,199.23,26.0]
[1753159011518,0.34,199.28,199.21,5.01960156]
[1753159011696,10.81150322,199.23,199.21,41.69960156]
[1753159011898,10.81150322,199.22,199.21,41.69960156]
[1753159012301,6.5449,199.39,199.24,26.0]
[1753159012514,10.81150322,199.29,199.25,36.68]
[1753159012821,10.81150322,199.3,199.26,5.7085687]
[1753159013020,10.81150322,199.29,199.26,5.7085687]
[1753159013225,10.81150322,199.3,199.27,0.69]
[1753159013412,10.81150322,199.28,199.22,0.69]
[1753159013612,10.81150322,199.25,199.23,36.72]
[1753159013799,17.12468397,199.34,199.24,0.69]
[1753159014294,10.81150322,199.27,199.24,0.69]
[1753159014500,10.81150322,199.27,199.23,54.28760072]
[1753159014898,10.81150322,199.28,199.24,0.69]
[1753159015320,10.81150322,199.28,199.25,0.69]
[1753159015506,10.81150322,199.28,199.26,36.7]
[1753159016122,10.81150322,199.29,199.27,0.69]
[1753159016319,0.34,199.38,199.29,26.0]
[1753159016520,10.81150322,199.35,199.3,37.37]
[1753159016823,10.81150322,199.37,199.33,26.0]
[1753159017021,0.06,199.4,199.34,37.37]
[1753159017628,0.06,199.4,199.37,26.0]
[1753159017934,16.84468397,199.4,199.37,62.68]
[1753159018107,10.81150322,199.38,199.37,26.0]
[1753159018521,10.81150322,199.38,199.36,36.68]
[1753159018720,10.81150322,199.37,199.36,36.68]
[1753159019122,16.78468397,199.36,199.3,0.69]
[1753159019418,10.81150322,199.34,199.31,36.68]
[1753159019622,10.81150322,199.36,199.32,0.69]
[1753159019824,10.81150322,199.37,199.33,0.69]
[1753159020030,10.81150322,199.36,199.33,5.70678218]
[1753159020226,10.81150322,199.34,199.25,0.69]
[1753159020427,0.34,199.35,199.25,0.69]
[1753159020428,10.81150322,199.29,199.26,36.68]
[1753159020620,17.12468397,199.35,199.27,0.69]
[1753159020810,10.81150322,199.37,199.3,10.81150322]
[1753159021128,10.81150322,199.33,199.31,36.68]
[1753159021310,10.81150322,199.32,199.31,36.68]
[1753159021828,10.81150322,199.34,199.31,36.68]
[1753159022025,10.81150322,199.37,199.35,5.01630298]
[1753159022337,10.81150322,199.37,199.35,5.70630298]
[1753159022908,10.81150322,199.38,199.35,5.70630298]
[1753159023202,10.81150322,199.37,199.35,5.01630298]
[1753159024038,0.06,199.4,199.39,5.01529665]
[1753159024335,0.06,199.4,199.39,36.68]
[1753159024532,0.06,199.4,199.39,37.37]
[1753159025537,0.06,199.4,199.39,0.69]
[1753159025721,0.06,199.4,199.39,37.35]
[1753159026036,0.06,199.4,199.3,188.88155122]
[1753159026037,0.4,199.4,199.32,12.542511]
[1753159026233,0.06,199.4,199.36,26.0]
[1753159026535,10.81150322,199.38,199.36,26.0]
[1753159026744,10.81150322,199.38,199.3,1.5093]
[1753159026745,10.81150322,199.37,199.29,0.69]
[1753159027037,10.81150322,199.31,199.28,5.01806503]
[1753159027237,10.81150322,199.33,199.29,36.7]
[1753159027440,10.81150322,199.36,199.3,11.50150322]
[1753159027616,0.06,199.4,199.33,26.0]
[1753159027927,0.06,199.4,199.33,62.7]
[1753159028134,0.06,199.4,199.33,67.7167108]
[1753159028339,10.81150322,199.37,199.33,67.7167108]
[1753159028515,0.06,199.4,199.34,0.68]
[1753159028838,0.06,199.4,199.34,11.49150322]
[1753159029135,0.06,199.4,199.35,11.49150322]
[1753159029314,0.06,199.4,199.36,73.53150322]
[1753159029514,0.06,199.4,199.36,74.21150322]
[1753159029738,0.06,199.4,199.37,0.68]
[1753159029928,10.87150322,199.4,199.36,62.72]
[1753159030129,10.87150322,199.4,199.37,5.01579976]
[1753159030313,0.06,199.4,199.38,0.68]
[1753159030513,0.06,199.4,199.39,36.72]
[1753159031936,27.65618719,199.4,199.33,0.68]
[1753159032139,22.19997197,199.4,199.3,0.68]
[1753159032365,10.81150322,199.32,199.25,23.35816396]
[1753159032526,10.81150322,199.27,199.25,0.68]
[1753159032715,10.81150322,199.27,199.26,36.72]
[1753159033113,10.81150322,199.28,199.26,37.4]
[1753159033545,10.81150322,199.31,199.27,0.68]